fUST/lending_fUST_20250828
["ID","MTS","AMOUNT","RATE_DAILY","PERIOD"]
[381817054,1756357891724,25000.0,0.00019913,2]
[381817055,1756357891750,50000.0,0.00019913,2]
[381817056,1756357891772,25000.0,0.00019913,2]
[381817057,1756357894119,-188.4031321,0.00019913,2]
[381817058,1756357897647,-166.26919927,0.00019913,2]
[381817059,1756357900766,-193.76885521,0.00019913,2]
[381817060,1756357902988,-158.5635418,0.00019863,2]
[381817061,1756357906872,-14.1030562,0.00019863,2]
[381817062,1756357906894,-154.41488418,0.00019913,2]
[381817063,1756357909097,-248.48105557,0.00019913,2]
[381817064,1756357911345,-334.16869982,0.00019913,2]
[381817065,1756357914931,-162.88940568,0.00019913,2]
[381817066,1756357917953,-283.69449493,0.00019913,2]
[381817067,1756357920066,-207.8141755,0.00019913,2]
[381817068,1756357924817,-200.16605707,0.000196,2]
[381817069,1756357926621,-335.59485343,0.000196,2]
[381817070,1756357929092,-203.74795615,0.000196,2]
[381817071,1756357931369,-182.44560753,0.000196,2]
[381817072,1756357935612,-156.58644768,0.00019462,2]
[381817073,1756357938960,-394.10514542,0.00019462,2]
[381817074,1756357943308,-165.86420085,0.00019462,2]
[381817075,1756357944995,-263.64037817,0.00019462,2]
[381817076,1756357947167,-162.49542098,0.00019462,2]
[381817077,1756357948893,-57.3084069,0.00019462,2]
[381817078,1756357948915,-107.27918182,0.000196,2]
[381817079,1756357948941,-109.84614226,0.00019912,2]
[381817080,1756357952237,-179.249725,0.00019912,2]
[381817081,1756357953910,-10.90413274,0.00019912,2]
[381817082,1756357953935,-235.687831,0.00019913,2]
[381817083,1756357956656,-239.5555955,0.000199,2]
[381817084,1756357961331,-157.29683821,0.000199,2]
[381817085,1756357964271,-252.31783154,0.000199,2]
[381817086,1756357967654,-261.34716842,0.000199,2]
[381817088,1756357972638,-300.0,0.000199,2]
[381817089,1756357975056,-201.48661493,0.000199,2]
[381817090,1756357977373,-297.61056082,0.000199,2]
[381817091,1756357980098,-214.22012249,0.000199,2]
[381817092,1756357982441,-290.04679408,0.000199,2]
[381817093,1756357985184,-55.40825544,0.000199,2]
[381817094,1756357985206,-185.67179556,0.00019911,2]
[381817095,1756357987536,-114.32820444,0.00019911,2]
[381817096,1756357987559,-201.48541906,0.00019912,2]
[381817097,1756357989832,-83.91321175,0.00019912,2]
[381817098,1756357989854,-467.71211544,0.00019912,2]
[381817099,1756357992077,-13.02743848,0.00019912,2]
[381817100,1756357992100,-220.49150595,0.00019912,2]
[381817101,1756357994068,-217.5503815,0.00019912,2]
[381817102,1756357996695,-105.71974306,0.00019912,2]
[381817103,1756357996720,-54.28025694,0.00019912,2]
[381817104,1756357999506,-178.60816858,0.00019912,2]
[381817105,1756358001617,-228.92505178,0.00019912,2]
[381817106,1756358004596,-38.1865227,0.00019912,2]
[381817107,1756358004621,-250.40211172,0.00019912,2]
[381817108,1756358007888,-181.02062697,0.00019912,2]
[381817109,1756358010795,-68.57726131,0.00019912,2]
[381817110,1756358010817,-234.26951389,0.00019912,2]
[381817111,1756358015419,-265.73048611,0.00019912,2]
[381817112,1756358015442,-19.43714569,0.00019912,2]
[381817113,1756358017743,-300.0,0.00019912,2]
[381817114,1756358020066,-271.86637142,0.00019912,2]
[381817115,1756358024199,-224.14787402,0.00019912,2]
[381817116,1756358029207,-167.88747449,0.00019912,2]
[381817117,1756358032245,-244.00134479,0.00019912,2]
[381817118,1756358034140,-163.10712,0.00019912,2]
[381817119,1756358038884,-188.4379988,0.00019013,2]
[381817120,1756358038906,-121.52822658,0.00019912,2]
[381817121,1756358044818,-229.11881082,0.00019911,2]
[381817122,1756358048488,-70.88118918,0.00019911,2]
[381817123,1756358048511,-149.11881082,0.00019912,2]
[381817124,1756358052203,-151.16803761,0.00019309,2]
[381817125,1756358053710,-207.25696577,0.00019309,2]
[381817126,1756358055313,-95.2584526,0.00019309,2]
[381817127,1756358055334,-70.79038449,0.00019912,2]
[381817128,1756358058728,-157.2887977,0.00019912,2]
[381817129,1756358061686,-191.348148,0.00019912,2]
[381817130,1756358063328,-274.61343851,0.00019912,2]
[381817131,1756358065388,-282.89808511,0.00019912,2]
[381817132,1756358068374,-158.67845406,0.00019912,2]
[381817133,1756358070576,-159.02996361,0.00019912,2]
[381817134,1756358073936,-231.89342119,0.00019912,2]
[381817135,1756358075660,-444.31520646,0.00019912,2]
[381817136,1756358077391,-350.30450842,0.00019911,2]
[381817137,1756358080737,-144.68871762,0.00019911,2]
[381817138,1756358080761,-40.84503267,0.00019911,2]
[381817139,1756358084460,-306.2421192,0.00019911,2]
[381817140,1756358087169,-152.91284813,0.00019911,2]
[381817141,1756358087191,-132.84503267,0.00019911,2]
[381817142,1756358089968,-180.135331,0.00019864,2]
[381817143,1756358093864,-171.61606017,0.00019864,2]
[381817144,1756358096203,-224.37152812,0.00019864,2]
[381817145,1756358097832,-185.6858928,0.00019864,2]
[381817146,1756358100165,-272.13678188,0.00019864,2]
[381817147,1756358104178,-237.61509383,0.00019864,2]
[381817148,1756358106343,-314.8691067,0.00019864,2]
[381817149,1756358111133,-356.51405368,0.00019864,2]
[381817150,1756358112705,-83.61356322,0.00019864,2]
[381817151,1756358112728,-216.20289512,0.0001991,2]
[381817152,1756358115568,-83.79710488,0.0001991,2]
[381817153,1756358115590,-84.84459471,0.0001991,2]
[381817154,1756358117979,-237.1030353,0.0001991,2]
[381817155,1756358120206,-142.05236999,0.0001991,2]
[381817156,1756358120227,-84.11659929,0.00019911,2]
[381817157,1756358120250,-47.87633946,0.00019911,2]
[381817158,1756358122517,-438.77569858,0.00019911,2]
[381817159,1756358125371,-29.7445616,0.00019911,2]
[381817160,1756358125396,-270.71717016,0.00019911,2]
[381817161,1756358128277,-164.86781774,0.00019911,2]
[381817162,1756358130519,-64.4150121,0.00019911,2]
[381817163,1756358130542,-195.87611825,0.00019911,2]
[381817164,1756358133469,-280.96338507,0.00019911,2]
[381817165,1756358135873,-23.16049668,0.00019911,2]
[381817166,1756358135896,-132.07942586,0.00019911,2]
[381817167,1756358139250,-367.92057414,0.00019911,2]
[381817168,1756358139273,-9.3158712,0.00019911,2]
[381817169,1756358144338,-188.34575,0.00019911,2]
[381817170,1756358146171,-280.9065449,0.00019911,2]
[381817171,1756358148731,-311.0934551,0.000199,2]
[381817172,1756358150882,-189.60509885,0.000199,2]
[381817173,1756358153832,-388.40849991,0.000199,2]
[381817174,1756358156588,-194.75177245,0.000199,2]
[381817175,1756358158358,-443.77356409,0.000199,2]
[381817176,1756358162429,-212.53620142,0.000199,2]
[381817177,1756358164780,-240.34537122,0.000199,2]
[381817178,1756358169614,-178.41417825,0.000199,2]
[381817179,1756358171874,-188.61693156,0.00019206,2]
[381817180,1756358173684,-113.95950681,0.00019206,2]
[381817181,1756358173704,-78.02972475,0.00019399,2]
[381817182,1756358175342,-163.85006088,0.00019399,2]
[381817183,1756358179988,-60.69665274,0.00019399,2]
[381817184,1756358180010,-195.70938314,0.00019591,2]
[381817185,1756358182635,-106.86705523,0.00019591,2]
[381817186,1756358182658,-68.18045625,0.00019783,2]
[381817187,1756358185577,-301.2110713,0.00019783,2]
[381817188,1756358187229,-83.79369189,0.00019783,2]
[381817189,1756358197200,-309.64307256,0.000192,2]
[381817190,1756358200811,-155.96630157,0.000192,2]
[381817191,1756358202505,-175.54632062,0.000192,2]
[381817192,1756358204727,-95.2352412,0.000192,2]
[381817193,1756358255599,-319.08703006,0.000192,2]
[381817194,1756358257260,-300.0,0.000192,2]
[381817195,1756358262688,-160.05387014,0.000192,2]
[381817196,1756358265451,-179.33697246,0.000192,2]
[381817197,1756358280406,1300.0,0.000186,2]
[381817198,1756358288511,-211.74343733,0.000198,2]
[381817199,1756358294448,-90.83300105,0.000198,2]
[381817200,1756358294468,-129.25378739,0.0001981,2]
[381817201,1756358300955,-214.78654885,0.0001891,2]
[381817202,1756358303339,-197.37240435,0.0001891,2]
[381817203,1756358309125,-176.68337962,0.0001891,2]
[381817204,1756358313771,-98.27720378,0.0001891,2]
[381817205,1756358313797,-30.80008275,0.0001981,2]
[381817206,1756358315556,-278.87554395,0.000192,2]
[381817207,1756358318698,-187.49038957,0.000192,2]
[381817208,1756358320333,-177.01210145,0.000192,2]
[381817209,1756358325069,-169.26903636,0.000192,2]
[381817211,1756358328139,-288.20216046,0.000192,2]
[381817213,1756358413784,-163.2723082,0.000198,2]
[381817214,1756358416952,-5.99672816,0.000198,2]
[381817215,1756358423577,-392.30406649,0.0001891,2]
[381817216,1756358425823,-190.7112023,0.0001891,2]
[381817217,1756358429187,-422.82178038,0.0001891,2]
[381817218,1756358430939,-240.67666115,0.0001891,2]
[381817219,1756358433181,-24.48105168,0.0001891,2]
[381817221,1756358520039,-190.89508705,0.00019799,2]
[381817222,1756358522872,-58.06232778,0.00019799,2]
[381817223,1756358564045,-239.0064467,0.0001906,2]
[381817224,1756358567508,-179.53353421,0.0001906,2]
[381817225,1756358569230,-256.29121886,0.0001906,2]
[381817226,1756358573174,-300.8094009,0.0001906,2]
[381817227,1756358576738,-269.8590092,0.0001906,2]
[381817228,1756358583150,-26.32787933,0.0001906,2]
[381817231,1756358734066,-177.01210145,0.00019797,2]
[381817232,1756358734091,-92.62348589,0.00019797,2]
[381817233,1756358736461,-156.33392893,0.00019797,2]
[381817234,1756358736484,-132.00389197,0.0001981,2]
[381817235,1756358741125,-238.21785205,0.0001981,2]
[381817236,1756358745086,-227.23635041,0.0001981,2]
[381817237,1756358750120,-185.14443571,0.0001981,2]
[381817238,1756358753170,-43.22655327,0.0001981,2]
[381817242,1756358800136,-250.89837006,0.00019896,2]
[381817291,1756358872280,5032.02477446,0.00018,2]
[381817295,1756358883008,-202.86858547,0.00018898,2]
[381817300,1756358885385,-168.94994048,0.00018898,2]
[381817302,1756358886733,-179.20355683,0.00018898,2]
[381817309,1756358890694,-272.67466308,0.00018898,2]
[381817310,1756358893503,-176.30325414,0.00018898,2]
[381817399,1756358957082,-152.05211604,0.0001982,2]
[381817401,1756358958497,-219.11092854,0.0001982,2]
[381817402,1756358961431,-439.28292527,0.0001982,2]
[381817403,1756358965274,-300.0,0.0001982,2]
[381817404,1756358967766,-176.74773164,0.0001982,2]
[381817405,1756358973070,-230.45266918,0.0001982,2]
[381817406,1756358974670,-187.49038957,0.0001982,2]
[381817407,1756358976818,-401.47900316,0.0001982,2]
[381817408,1756358980799,-177.91537402,0.00019298,2]
[381817409,1756358982957,-33.53775835,0.00019298,2]
[381817410,1756358982985,-1.59513655,0.0001982,2]
[381817461,1756359032670,-160.0,0.0001982,2]
[381817463,1756359032680,-185.176569,0.00019863,2]
[381817465,1756359032689,-300.0,0.00019894,2]
[381817467,1756359032699,-2156.0,0.00019894,2]
[381817469,1756359032708,-500.0,0.00019895,2]
[381817471,1756359032718,-500.0,0.00019895,2]
[381817473,1756359032727,-500.0,0.00019895,2]
[381817475,1756359032736,-500.0,0.00019895,2]
[381817477,1756359032746,-500.0,0.00019895,2]
[381817479,1756359032755,-651.63965996,0.00019895,2]
[381817481,1756359032765,-650.52822152,0.00019895,2]
[381817483,1756359032774,-500.0,0.00019895,2]
[381817485,1756359032784,-500.0,0.00019895,2]
[381817487,1756359032793,-500.0,0.00019895,2]
[381817489,1756359032802,-500.0,0.00019895,2]
[381817491,1756359032811,-500.0,0.00019895,2]
[381817493,1756359032821,-500.0,0.00019895,2]
[381817495,1756359032830,-500.0,0.00019895,2]
[381817497,1756359032839,-500.0,0.00019895,2]
[381817498,1756359032848,-500.0,0.00019895,2]
[381817500,1756359032858,-500.0,0.00019895,2]
[381817502,1756359032867,-500.0,0.00019895,2]
[381817503,1756359032876,-500.0,0.00019895,2]
[381817504,1756359032886,-500.0,0.00019895,2]
[381817505,1756359032895,-500.0,0.00019895,2]
[381817506,1756359032904,-19715.92648614,0.00019895,2]
[381817507,1756359032916,-639.9710502,0.00019895,2]
[381818091,1756359038762,-29644.10246366,0.00019895,2]
[381818093,1756359038772,-199.77904157,0.00019896,2]
[381818095,1756359038781,-894.6481737,0.00019896,2]
[381818097,1756359038791,-480.0,0.00019896,2]
[381818099,1756359038800,-572.9,0.00019896,2]
[381818101,1756359038809,-752.91,0.00019896,2]
[381818103,1756359038820,-703.23,0.00019896,2]
[381818105,1756359038829,-480.0,0.00019896,2]
[381818107,1756359038839,-390.54283234,0.00019896,2]
[381818109,1756359038847,-480.0,0.00019896,2]
[381818111,1756359038857,-480.0,0.00019896,2]
[381818113,1756359038866,-480.0,0.00019896,2]
[381818115,1756359038876,-1114.67,0.00019897,2]
[381818117,1756359038886,-480.0,0.00019897,2]
[381818119,1756359038896,-480.0,0.00019897,2]
[381818121,1756359038905,-480.0,0.00019897,2]
[381818123,1756359038914,-1696.14,0.00019897,2]
[381818125,1756359038924,-2857.7,0.00019897,2]
[381818127,1756359038933,-834.32,0.00019897,2]
[381818129,1756359038943,-480.0,0.00019897,2]
[381818131,1756359038952,-1083.66,0.00019897,2]
[381818133,1756359038961,-510.81,0.00019897,2]
[381818135,1756359038971,-823.91,0.00019897,2]
[381818137,1756359038983,-521.25,0.00019897,2]
[381818139,1756359038994,-989.33,0.00019897,2]
[381818142,1756359039003,-480.0,0.00019897,2]
[381818144,1756359039013,-480.0,0.00019897,2]
[381818146,1756359039023,-522.64,0.00019897,2]
[381818148,1756359039033,-2481.54,0.00019897,2]
[381818150,1756359039043,-480.0,0.00019897,2]
[381818152,1756359039055,-480.0,0.00019897,2]
[381818154,1756359039065,-1095.26,0.00019897,2]
[381818156,1756359039075,-1200.97,0.00019897,2]
[381818158,1756359039084,-1460.7,0.00019897,2]
[381818160,1756359039093,-480.0,0.00019897,2]
[381818162,1756359039102,-480.0,0.00019897,2]
[381818164,1756359039111,-480.0,0.00019899,2]
[381818166,1756359039121,-618.89,0.00019899,2]
[381818168,1756359039130,-906.74,0.00019899,2]
[381818170,1756359039140,-705.39,0.00019899,2]
[381818172,1756359039150,-1839.99,0.00019899,2]
[381818174,1756359039159,-1861.74,0.00019899,2]
[381818176,1756359039168,-480.0,0.00019899,2]
[381818178,1756359039177,-743.575086,0.000199,2]
[381818180,1756359039187,-5411.26893239,0.000199,2]
[381818182,1756359039196,-480.0,0.00019909,2]
[381818184,1756359039205,-480.0,0.00019909,2]
[381818186,1756359039213,-492.11,0.00019909,2]
[381818188,1756359039223,-480.0,0.00019909,2]
[381818190,1756359039232,-480.0,0.00019909,2]
[381818192,1756359039241,-219.46325371,0.00019909,2]
[381818194,1756359039250,-525.5,0.00019909,2]
[381818196,1756359039259,-757.48,0.00019909,2]
[381818198,1756359039269,-1154.96,0.00019909,2]
[381818200,1756359039278,-633.66,0.00019909,2]
[381818202,1756359039287,-480.0,0.00019909,2]
[381818204,1756359039296,-480.0,0.00019909,2]
[381818206,1756359039306,-480.0,0.00019909,2]
[381818208,1756359039315,-480.0,0.00019909,2]
[381818210,1756359039323,-480.0,0.00019909,2]
[381818212,1756359039334,-507.97,0.00019909,2]
[381818214,1756359039343,-516.26,0.00019909,2]
[381818216,1756359039353,-494.88,0.00019909,2]
[381818218,1756359039363,-480.0,0.00019909,2]
[381818220,1756359039372,-480.0,0.00019909,2]
[381818222,1756359039381,-1026.05,0.00019909,2]
[381818224,1756359039392,-617.12,0.00019909,2]
[381818226,1756359039401,-815.4,0.00019909,2]
[381818228,1756359039411,-480.0,0.00019909,2]
[381818230,1756359039420,-480.0,0.00019909,2]
[381818232,1756359039429,-1142.18,0.00019909,2]
[381818234,1756359039439,-480.0,0.00019909,2]
[381818236,1756359039448,-721.2,0.00019909,2]
[381818238,1756359039457,-480.0,0.00019909,2]
[381818240,1756359039467,-480.0,0.00019909,2]
[381818242,1756359039476,-480.0,0.00019909,2]
[381818244,1756359039486,-480.0,0.00019909,2]
[381818246,1756359039495,-480.0,0.00019909,2]
[381818248,1756359039505,-480.0,0.00019909,2]
[381818250,1756359039515,-480.0,0.00019909,2]
[381818252,1756359039524,-681.77,0.00019909,2]
[381818254,1756359039533,-480.0,0.00019909,2]
[381818256,1756359039542,-480.0,0.00019909,2]
[381818258,1756359039551,-480.0,0.00019909,2]
[381818260,1756359039561,-480.0,0.00019909,2]
[381818262,1756359039570,-512.82,0.00019909,2]
[381818264,1756359039579,-480.0,0.00019909,2]
[381818266,1756359039588,-480.0,0.00019909,2]
[381818267,1756359039597,-480.0,0.00019909,2]
[381818268,1756359039608,-614.76,0.00019909,2]
[381818269,1756359039620,-480.0,0.00019909,2]
[381818270,1756359039629,-555.47,0.00019909,2]
[381818271,1756359039640,-480.0,0.00019909,2]
[381818272,1756359039649,-798.96,0.00019909,2]
[381818273,1756359039658,-480.0,0.00019909,2]
[381818274,1756359039667,-756.2,0.00019909,2]
[381818275,1756359039676,-480.0,0.00019909,2]
[381818276,1756359039686,-983.61,0.00019909,2]
[381818277,1756359039695,-480.0,0.00019909,2]
[381818278,1756359039704,-480.0,0.00019909,2]
[381818280,1756359039713,-480.0,0.00019909,2]
[381818281,1756359039723,-480.0,0.00019909,2]
[381818283,1756359039733,-480.0,0.00019909,2]
[381818285,1756359039743,-480.0,0.00019909,2]
[381818287,1756359039753,-1064.67,0.00019909,2]
[381818289,1756359039763,-319.73697056,0.00019909,2]
[381818291,1756359039772,-493.0,0.00019909,2]
[381818293,1756359039782,-480.0,0.00019909,2]
[381818295,1756359039793,-480.0,0.00019909,2]
[381818297,1756359039802,-710.0,0.00019909,2]
[381818299,1756359039811,-970.57,0.00019909,2]
[381818301,1756359039821,-480.0,0.00019909,2]
[381818303,1756359039830,-480.0,0.00019909,2]
[381818305,1756359039839,-480.0,0.00019909,2]
[381818307,1756359039848,-1220.37,0.00019909,2]
[381818309,1756359039858,-480.0,0.00019909,2]
[381818311,1756359039867,-1151.32,0.00019909,2]
[381818313,1756359039875,-480.0,0.00019909,2]
[381818315,1756359039885,-480.0,0.00019909,2]
[381818317,1756359039895,-480.0,0.00019909,2]
[381818319,1756359039904,-2705.55,0.00019909,2]
[381818321,1756359039913,-480.0,0.00019909,2]
[381818322,1756359039922,-480.0,0.00019909,2]
[381818324,1756359039931,-480.0,0.00019909,2]
[381818326,1756359039941,-1553.04,0.00019909,2]
[381818328,1756359039951,-480.0,0.00019909,2]
[381818330,1756359039960,-480.0,0.00019909,2]
[381818333,1756359039970,-480.0,0.00019909,2]
[381818335,1756359039984,-814.48,0.00019909,2]
[381818337,1756359039993,-564.85,0.00019909,2]
[381818339,1756359040002,-702.36,0.00019909,2]
[381818341,1756359040013,-525.24,0.00019909,2]
[381818342,1756359040023,-493.74,0.0001991,2]
[381818345,1756359040032,-480.0,0.0001991,2]
[381818346,1756359040042,-481.29,0.0001991,2]
[381818349,1756359040052,-480.0,0.0001991,2]
[381818351,1756359040062,-556.25,0.0001991,2]
[381818353,1756359040071,-1085.19,0.0001991,2]
[381818354,1756359040080,-482.32327462,0.0001991,2]
[381818356,1756359040090,-2325.64,0.0001991,2]
[381818359,1756359040100,-1891.41,0.0001991,2]
[381818360,1756359040109,-480.0,0.0001991,2]
[381818363,1756359040119,-564.63028461,0.0001991,2]
[381818364,1756359040128,-480.0,0.0001991,2]
[381818366,1756359040139,-480.0,0.0001991,2]
[381818368,1756359040148,-855.65,0.0001991,2]
[381818370,1756359040158,-1000.0,0.0001991,2]
[381818372,1756359040167,-500.0,0.00019911,2]
[381818374,1756359040176,-592.22250925,0.00019911,2]
[381818376,1756359040186,-480.0,0.00019911,2]
[381818378,1756359040195,-480.0,0.00019911,2]
[381818381,1756359040204,-482.66415075,0.00019911,2]
[381818383,1756359040213,-480.0,0.00019911,2]
[381818385,1756359040223,-480.0,0.00019911,2]
[381818388,1756359040233,-480.0,0.00019911,2]
[381818390,1756359040242,-480.0,0.00019911,2]
[381818392,1756359040252,-480.0,0.00019911,2]
[381818394,1756359040261,-480.0,0.00019911,2]
[381818396,1756359040270,-480.0,0.00019911,2]
[381818398,1756359040280,-480.0,0.00019911,2]
[381818401,1756359040289,-480.0,0.00019911,2]
[381818403,1756359040299,-480.0,0.00019911,2]
[381818405,1756359040308,-480.0,0.00019911,2]
[381818407,1756359040317,-480.0,0.00019911,2]
[381818409,1756359040327,-481.26800309,0.00019911,2]
[381818411,1756359040336,-480.0,0.00019911,2]
[381818413,1756359040345,-481.12422494,0.00019911,2]
[381818415,1756359040354,-199.64287859,0.00019911,2]
[381818417,1756359040364,-480.0,0.00019911,2]
[381818419,1756359040374,-480.0,0.00019911,2]
[381818421,1756359040383,-480.0,0.00019911,2]
[381818423,1756359040393,-482.15838369,0.00019911,2]
[381818424,1756359040402,-480.0,0.00019911,2]
[381818426,1756359040412,-480.0,0.00019911,2]
[381818428,1756359040421,-480.0,0.00019911,2]
[381818430,1756359040430,-480.0,0.00019911,2]
[381818432,1756359040440,-480.0,0.00019911,2]
[381818434,1756359040449,-480.0,0.00019911,2]
[381818436,1756359040458,-480.0,0.00019911,2]
[381818438,1756359040468,-480.0,0.00019911,2]
[381818440,1756359040478,-480.0,0.00019911,2]
[381818442,1756359040487,-480.0,0.00019911,2]
[381818444,1756359040496,-480.91481663,0.00019911,2]
[381818446,1756359040505,-480.0,0.00019911,2]
[381818448,1756359040515,-480.0,0.00019911,2]
[381818450,1756359040525,-480.0,0.00019911,2]
[381818452,1756359040534,-480.0,0.00019911,2]
[381818454,1756359040544,-480.0,0.00019911,2]
[381818456,1756359040553,-480.0,0.00019911,2]
[381818458,1756359040564,-480.0,0.00019911,2]
[381818460,1756359040574,-231.41900223,0.00019911,2]
[381818462,1756359040583,-480.0,0.00019911,2]
[381818464,1756359040593,-480.0,0.00019911,2]
[381818466,1756359040602,-480.0,0.00019911,2]
[381818468,1756359040611,-466.28953477,0.00019911,2]
[381818470,1756359040621,-363.60861548,0.00019911,2]
[381818472,1756359040630,-480.0,0.00019911,2]
[381818474,1756359040640,-480.0,0.00019911,2]
[381818476,1756359040649,-480.0,0.00019911,2]
[381818478,1756359040658,-480.0,0.00019911,2]
[381818480,1756359040668,-480.0,0.00019911,2]
[381818482,1756359040677,-480.0,0.00019911,2]
[381818484,1756359040686,-480.0,0.00019911,2]
[381818486,1756359040695,-480.0,0.00019911,2]
[381818488,1756359040705,-480.0,0.00019911,2]
[381818490,1756359040714,-480.0,0.00019911,2]
[381818492,1756359040723,-480.0,0.00019911,2]
[381818494,1756359040732,-480.0,0.00019911,2]
[381818496,1756359040742,-480.0,0.00019911,2]
[381818498,1756359040751,-480.0,0.00019911,2]
[381818500,1756359040761,-480.0,0.00019911,2]
[381818502,1756359040770,-480.0,0.00019911,2]
[381818504,1756359040780,-480.0,0.00019911,2]
[381818506,1756359040789,-480.0,0.00019911,2]
[381818508,1756359040799,-480.0,0.00019911,2]
[381818510,1756359040808,-480.0,0.00019911,2]
[381818512,1756359040817,-480.0,0.00019911,2]
[381818514,1756359040827,-480.0,0.00019911,2]
[381818516,1756359040837,-480.0,0.00019911,2]
[381818518,1756359040846,-480.0,0.00019911,2]
[381818520,1756359040855,-480.0,0.00019911,2]
[381818521,1756359040864,-480.0,0.00019911,2]
[381818523,1756359040874,-480.0,0.00019911,2]
[381818525,1756359040883,-480.0,0.00019911,2]
[381818527,1756359040893,-480.0,0.00019911,2]
[381818529,1756359040903,-480.0,0.00019911,2]
[381818531,1756359040912,-480.0,0.00019911,2]
[381818533,1756359040922,-480.0,0.00019911,2]
[381818535,1756359040932,-480.0,0.00019911,2]
[381818537,1756359040942,-480.0,0.00019911,2]
[381818540,1756359040951,-480.0,0.00019911,2]
[381818541,1756359040961,-500.0,0.00019911,2]
[381818543,1756359040973,-500.0,0.00019911,2]
[381818546,1756359040984,-500.0,0.00019911,2]
[381818548,1756359040995,-480.0,0.00019911,2]
[381818550,1756359041005,-480.0,0.00019911,2]
[381818551,1756359041015,-480.0,0.00019911,2]
[381818554,1756359041025,-480.0,0.00019911,2]
[381818555,1756359041035,-480.0,0.00019911,2]
[381818557,1756359041045,-480.0,0.00019911,2]
[381818559,1756359041055,-480.0,0.00019911,2]
[381818561,1756359041064,-480.0,0.00019911,2]
[381818563,1756359041073,-480.0,0.00019911,2]
[381818565,1756359041083,-480.0,0.00019911,2]
[381818567,1756359041093,-480.0,0.00019911,2]
[381818569,1756359041102,-480.0,0.00019911,2]
[381818571,1756359041112,-480.0,0.00019911,2]
[381818573,1756359041122,-480.0,0.00019911,2]
[381818575,1756359041132,-480.0,0.00019911,2]
[381818577,1756359041141,-480.0,0.00019911,2]
[381818579,1756359041151,-480.0,0.00019911,2]
[381818581,1756359041161,-480.0,0.00019911,2]
[381818583,1756359041170,-480.0,0.00019911,2]
[381818585,1756359041180,-243.38829305,0.00019911,2]
[381818587,1756359041189,-480.0,0.00019911,2]
[381818589,1756359041198,-842.45,0.00019911,2]
[381818591,1756359041207,-480.0,0.00019911,2]
[381818593,1756359041217,-480.0,0.00019911,2]
[381818595,1756359041227,-480.0,0.00019911,2]
[381818597,1756359041236,-480.0,0.00019911,2]
[381818599,1756359041246,-480.0,0.00019911,2]
[381818601,1756359041255,-546.14,0.00019911,2]
[381818603,1756359041265,-480.0,0.00019911,2]
[381818605,1756359041275,-511.82,0.00019911,2]
[381818607,1756359041284,-480.0,0.00019911,2]
[381818609,1756359041294,-480.0,0.00019911,2]
[381818611,1756359041303,-480.0,0.00019911,2]
[381818613,1756359041312,-480.0,0.00019911,2]
[381818615,1756359041321,-480.0,0.00019911,2]
[381818617,1756359041331,-480.0,0.00019911,2]
[381818619,1756359041341,-480.0,0.00019911,2]
[381818621,1756359041350,-480.0,0.00019911,2]
[381818623,1756359041360,-480.0,0.00019911,2]
[381818625,1756359041370,-480.0,0.00019911,2]
[381818627,1756359041379,-510.83,0.00019911,2]
[381818629,1756359041389,-480.0,0.00019911,2]